fUST/lending_fUST_20240117
["ID","MTS","AMOUNT","RATE_DAILY","PERIOD"]
[311828152,1705440642035,-1462.71,0.0003178,2]
[311828153,1705440642044,-341.42797403,0.0003178,2]
[311828154,1705440642053,-500.93686172,0.0003178,2]
[311828155,1705440642064,-356.66371948,0.0003178,2]
[311828156,1705440642074,-500.0,0.0003178,2]
[311828157,1705440642083,-8337.68,0.0003178,2]
[311828158,1705440642093,-500.0,0.0003178,2]
[311828159,1705440642103,-500.0,0.0003178,2]
[311828160,1705440642113,-253.24117854,0.0003178,2]
[311828161,1705440642122,-500.0,0.0003178,4]
[311828162,1705440642131,-500.0,0.0003178,2]
[311828163,1705440642140,-150.0,0.0003178,2]
[311828164,1705440642150,-2523.65,0.0003178,2]
[311828165,1705440642160,-500.0,0.0003178,2]
[311828166,1705440642169,-2074.35,0.0003178,2]
[311828167,1705440642178,-500.0,0.0003178,2]
[311828168,1705440642187,-500.0,0.0003178,2]
[311828169,1705440642196,-168.11506356,0.0003178,2]
[311828170,1705440642205,-406.7888539,0.0003178,2]
[311828171,1705440642214,-500.0,0.0003178,2]
[311828172,1705440642224,-500.0,0.0003178,2]
[311828173,1705440642234,-694.15,0.0003178,2]
[311828174,1705440642243,-500.0,0.0003178,2]
[311828175,1705440642252,-245.87781331,0.0003178,2]
[311828176,1705440642261,-500.0,0.0003178,2]
[311828177,1705440642270,-500.0,0.0003178,2]
[311828178,1705440642279,-500.0,0.0003178,2]
[311828179,1705440642290,-500.0,0.0003178,2]
[311828180,1705440642299,-500.0,0.0003178,2]
[311828181,1705440642309,-500.0,0.0003178,2]
[311828182,1705440642318,-500.0,0.0003178,2]
[311828183,1705440642328,-500.0,0.0003178,2]
[311828184,1705440642337,-500.0,0.0003178,2]
[311828185,1705440642347,-500.0,0.0003178,2]
[311828186,1705440642357,-500.0,0.0003178,2]
[311828187,1705440642367,-500.0,0.0003178,2]
[311828188,1705440642375,-500.0,0.0003178,2]
[311828189,1705440642385,-500.0,0.0003178,2]
[311828190,1705440642394,-25001.68,0.0003178,2]
[311828191,1705440642402,-500.0,0.0003178,2]
[311828192,1705440642412,-197.51017358,0.0003178,2]
[311828193,1705440642421,-500.0,0.0003178,2]
[311828194,1705440642430,-182.65485512,0.0003178,2]
[311828195,1705440642439,-5802.44,0.0003178,2]
[311828196,1705440642448,-641.98,0.0003178,2]
[311828197,1705440642457,-500.0,0.0003178,2]
[311828198,1705440642467,-500.0,0.0003178,2]
[311828199,1705440642476,-232.7307357,0.0003178,2]
[311828200,1705440642486,-500.0,0.0003178,2]
[311828201,1705440642496,-500.0,0.0003178,2]
[311828202,1705440642507,-500.0,0.0003178,2]
[311828203,1705440642517,-1299.04,0.0003178,2]
[311828204,1705440642525,-500.0,0.0003178,2]
[311828205,1705440642534,-1861.01,0.0003178,2]
[311828206,1705440642544,-500.0,0.0003178,2]
[311828207,1705440642554,-500.0,0.0003178,2]
[311828208,1705440642563,-500.0,0.0003178,2]
[311828209,1705440642571,-500.0,0.0003178,2]
[311828210,1705440642581,-500.0,0.0003178,2]
[311828211,1705440642590,-500.0,0.0003178,2]
[311828212,1705440642599,-500.0,0.0003178,2]
[311828213,1705440642608,-14678.37,0.0003178,2]
[311828214,1705440642618,-500.0,0.0003178,2]
[311828215,1705440642627,-500.0,0.0003178,2]
[311828216,1705440642637,-1761.95,0.0003178,2]
[311828217,1705440642646,-500.0,0.0003178,2]
[311828218,1705440642655,-500.0,0.0003178,2]
[311828219,1705440642665,-576.92,0.0003178,2]
[311828220,1705440642675,-500.0,0.0003178,2]
[311828221,1705440642684,-500.0,0.0003178,2]
[311828222,1705440642693,-500.55842521,0.0003178,2]
[311828223,1705440642702,-4973.99,0.0003178,2]
[311828224,1705440642712,-500.0,0.0003178,2]
[311828225,1705440642722,-500.0,0.0003178,2]
[311828226,1705440642732,-500.0,0.0003178,2]
[311828227,1705440642741,-500.0,0.0003178,2]
[311828228,1705440642750,-760.0,0.0003178,2]
[311828229,1705440642823,-500.0,0.0003178,2]
[311828230,1705440642833,-509.60832325,0.0003178,2]
[311828231,1705440642842,-500.0,0.0003178,2]
[311828232,1705440642851,-1239.19,0.0003178,2]
[311828233,1705440642862,-500.0,0.0003178,2]
[311828234,1705440642871,-500.0,0.0003178,2]
[311828235,1705440642880,-972.57,0.0003178,2]
[311828236,1705440642890,-500.0,0.0003178,2]
[311828237,1705440642900,-500.0,0.0003178,2]
[311828238,1705440642910,-658.28,0.0003178,2]
[311828239,1705440642920,-596.58,0.0003178,2]
[311828240,1705440642930,-500.0,0.0003178,2]
[311828241,1705440642940,-500.0,0.0003178,2]
[311828242,1705440642949,-500.0,0.0003178,2]
[311828243,1705440642958,-500.0,0.0003178,2]
[311828244,1705440642968,-500.0,0.0003178,2]
[311828245,1705440642978,-569.11693197,0.0003178,2]
[311828246,1705440642988,-500.0,0.0003178,2]
[311828247,1705440642998,-500.0,0.0003178,2]
[311828248,1705440643008,-2116.61,0.0003178,2]
[311828249,1705440643020,-500.0,0.0003178,2]
[311828250,1705440643030,-500.0,0.0003178,2]
[311828251,1705440643040,-500.0,0.0003178,2]
[311828252,1705440643050,-500.0,0.0003178,2]
[311828253,1705440643060,-1074.51,0.0003178,2]
[311828254,1705440643069,-500.0,0.0003178,2]
[311828256,1705440643079,-500.0,0.0003178,2]
[311828257,1705440643089,-500.0,0.0003178,2]
[311828258,1705440643100,-1204.35,0.0003178,2]
[311828259,1705440643110,-1030.54,0.0003178,2]
[311828260,1705440643119,-465.78510027,0.0003178,2]
[311828261,1705440643128,-500.0,0.0003178,2]
[311828262,1705440643137,-500.0,0.0003178,2]
[311828263,1705440643146,-6343.06,0.0003178,2]
[311828264,1705440643155,-500.0,0.0003178,2]
[311828265,1705440643164,-500.0,0.0003178,2]
[311828266,1705440643173,-500.0,0.0003178,2]
[311828267,1705440643182,-500.0,0.0003178,5]
[311828268,1705440643192,-500.0,0.0003178,2]
[311828270,1705440643201,-6021.15771627,0.00031906,2]
[311828272,1705440643210,-1505.28942906,0.00031906,2]
[311828274,1705440643219,-190.09943586,0.00031906,2]
[311828276,1705440643230,-547.02983076,0.00031906,2]
[311828277,1705440643238,-586.32062219,0.00031916,4]
[311828278,1705440643247,-2696.18744287,0.00031916,2]
[311828280,1705440643257,-703.73,0.00031916,2]
[311828281,1705440643266,-703.73,0.00031916,2]
[311828284,1705440643275,-703.73,0.00031916,2]
[311828287,1705440643284,-151.0,0.00031917,2]
[311828290,1705440643293,-263.055414,0.00031917,2]
[311828292,1705440643302,-263.055414,0.00031917,2]
[311828294,1705440643311,-151.0,0.00031917,2]
[311828297,1705440643319,-500.0,0.00031917,2]
[311828299,1705440643328,-500.0,0.00031917,2]
[311828300,1705440643337,-500.0,0.00031917,2]
[311828301,1705440643346,-500.0,0.00031917,2]
[311828302,1705440643355,-500.0,0.00031917,2]
[311828303,1705440643364,-500.0,0.00031917,2]
[311828304,1705440643373,-500.0,0.00031917,2]
[311828306,1705440643382,-500.0,0.00031917,2]
[311828307,1705440643391,-500.0,0.00031917,2]
[311828308,1705440643401,-500.0,0.00031917,2]
[311828309,1705440643409,-500.0,0.00031917,2]
[311828311,1705440643419,-500.0,0.00031917,2]
[311828313,1705440643428,-386.11503566,0.00031917,2]
[311828315,1705440643437,-500.0,0.00031917,2]
[311828316,1705440643446,-500.0,0.00031917,2]
[311828317,1705440643455,-1268.8,0.00031917,2]
[311828318,1705440643464,-636.10524314,0.00031917,2]
[311828319,1705440643473,-500.0,0.00031917,2]
[311828320,1705440643484,-500.0,0.00031917,2]
[311828321,1705440643494,-500.0,0.00031917,2]
[311828322,1705440643714,-511.67588667,0.00031917,2]
[311828323,1705440643724,-500.0,0.00031917,2]
[311828325,1705440643733,-500.0,0.00031917,2]
[311828327,1705440643744,-500.0,0.00031917,2]
[311828329,1705440643753,-500.0,0.00031917,2]
[311828331,1705440643763,-440.40887106,0.00031917,2]
[311828332,1705440643772,-500.0,0.00031917,2]
[311828333,1705440643781,-500.0,0.00031917,2]
[311828334,1705440643792,-500.0,0.00031917,2]
[311828335,1705440643801,-500.0,0.00031917,2]
[311828336,1705440643810,-500.0,0.00031917,2]
[311828337,1705440643819,-612.02,0.00031917,2]
[311828338,1705440643828,-500.0,0.00031917,2]
[311828339,1705440643837,-500.0,0.00031917,2]
[311828340,1705440643846,-500.0,0.00031917,2]
[311828341,1705440643855,-500.0,0.00031917,2]
[311828342,1705440643864,-500.0,0.00031917,2]
[311828343,1705440643873,-500.0,0.00031917,2]
[311828344,1705440643882,-310.11588725,0.00031917,2]
[311828345,1705440643891,-500.0,0.00031917,2]
[311828346,1705440643900,-500.0,0.00031917,2]
[311828347,1705440643910,-500.0,0.00031917,2]
[311828348,1705440643919,-500.0,0.00031917,2]
[311828349,1705440643928,-500.0,0.00031917,2]
[311828350,1705440643938,-500.0,0.00031917,2]
[311828351,1705440643949,-500.0,0.00031917,2]
[311828352,1705440643958,-675.7,0.00031917,2]
[311828353,1705440643968,-500.0,0.00031917,2]
[311828354,1705440643978,-500.0,0.00031917,2]
[311828355,1705440643987,-500.0,0.00031917,2]
[311828356,1705440643996,-500.0,0.00031917,2]
[311828357,1705440644006,-1000.0,0.00031917,2]
[311828358,1705440644015,-650.51,0.00031917,2]
[311828359,1705440644025,-504.86294774,0.00031917,2]
[311828360,1705440644034,-500.0,0.00031917,2]
[311828361,1705440644043,-500.0,0.00031917,2]
[311828362,1705440644052,-500.0,0.00031917,2]
[311828363,1705440644061,-366.94048723,0.00031917,2]
[311828364,1705440644071,-967.4,0.00031917,2]
[311828365,1705440644080,-345.84708947,0.00031917,2]
[311828366,1705440644089,-500.0,0.00031917,2]
[311828367,1705440644098,-501.03600058,0.00031917,2]
[311828368,1705440644107,-500.0,0.00031917,2]
[311828369,1705440644116,-501.5870556,0.00031917,2]
[311828370,1705440644125,-504.58340469,0.00031917,2]
[311828371,1705440644134,-500.0,0.00031917,2]
[311828372,1705440644142,-590.48447609,0.00031917,2]
[311828373,1705440644152,-500.0,0.00031917,2]
[311828374,1705440644161,-500.0,0.00031917,2]
[311828375,1705440644169,-502.05991619,0.00031917,2]
[311828376,1705440644178,-500.0,0.00031917,2]
[311828377,1705440644188,-500.0,0.00031917,2]
[311828378,1705440644197,-500.0,0.00031917,2]
[311828379,1705440644206,-659.91,0.00031917,2]
[311828380,1705440644215,-500.0,0.00031917,2]
[311828381,1705440644224,-500.0,0.00031917,2]
[311828382,1705440644233,-500.0,0.00031917,2]
[311828383,1705440644242,-508.84364102,0.00031917,2]
[311828384,1705440644251,-500.0,0.00031917,2]
[311828385,1705440644260,-365.80980879,0.00031917,2]
[311828386,1705440644276,-500.0,0.00031917,2]
[311828387,1705440644290,-500.0,0.00031917,2]
[311828388,1705440644299,-500.0,0.00031917,2]
[311828389,1705440644309,-500.0,0.00031917,2]
[311828390,1705440644318,-500.0,0.00031917,2]
[311828391,1705440644328,-550.67156865,0.00031917,2]
[311828392,1705440644338,-500.0,0.00031917,2]
[311828393,1705440644347,-500.0,0.00031917,2]
[311828394,1705440644356,-508.64246529,0.00031917,2]
[311828395,1705440644366,-500.0,0.00031917,2]
[311828396,1705440644376,-345.01609448,0.00031917,2]
[311828397,1705440644385,-1385.82,0.00031917,2]
[311828398,1705440644492,-336.87464268,0.00031917,2]
[311828399,1705440644504,-500.0,0.00031917,2]
[311828400,1705440644515,-500.0,0.00031917,2]
[311828401,1705440644524,-500.0,0.00031917,2]
[311828402,1705440644534,-500.0,0.00031917,2]
[311828403,1705440644543,-470.81914919,0.00031917,2]
[311828404,1705440644553,-684.01,0.00031917,2]
[311828405,1705440644563,-571.56639859,0.00031917,2]
[311828406,1705440644572,-500.0,0.00031917,2]
[311828407,1705440644582,-500.0,0.00031917,2]
[311828408,1705440644593,-800.54,0.00031917,2]
[311828409,1705440644602,-510.94212336,0.00031917,2]
[311828410,1705440644612,-500.0,0.00031917,2]
[311828411,1705440644621,-500.0,0.00031917,2]
[311828412,1705440644630,-500.0,0.00031917,2]
[311828413,1705440644639,-501.22663069,0.00031917,2]
[311828414,1705440644649,-500.0,0.00031917,2]
[311828415,1705440644658,-500.0,0.00031917,2]
[311828416,1705440644667,-500.0,0.00031917,2]
[311828417,1705440644677,-975.1,0.00031917,2]
[311828418,1705440644686,-500.0,0.00031917,2]
[311828419,1705440644695,-572.74150537,0.00031917,2]
[311828420,1705440644704,-500.0,0.00031917,2]
[311828421,1705440644713,-500.0,0.00031917,2]
[311828422,1705440644722,-523.79,0.00031917,2]
[311828423,1705440644732,-522.11357524,0.00031917,2]
[311828424,1705440644741,-500.0,0.00031917,2]
[311828425,1705440644750,-500.0,0.00031917,2]
[311828426,1705440644760,-500.0,0.00031917,2]
[311828427,1705440644770,-500.0,0.00031917,2]
[311828428,1705440644779,-500.31587966,0.00031917,2]
[311828429,1705440644788,-398.43963782,0.00031917,2]
[311828430,1705440644798,-500.0,0.00031917,2]
[311828431,1705440644807,-500.0,0.00031917,2]
[311828432,1705440644817,-213.21012901,0.00031917,2]
[311828433,1705440644827,-500.0,0.00031917,2]
[311828434,1705440644836,-2001.93,0.00031917,2]
[311828435,1705440644845,-500.0,0.00031917,2]
[311828436,1705440644854,-504.69559052,0.00031917,2]
[311828437,1705440644863,-2402.7,0.00031917,2]
[311828438,1705440644872,-500.0,0.00031917,2]
[311828439,1705440644881,-500.0,0.00031917,2]
[311828440,1705440644890,-500.0,0.00031917,2]
[311828441,1705440644899,-500.0,0.00031917,2]
[311828442,1705440644909,-4582.57,0.00031917,2]
[311828443,1705440644917,-500.0,0.00031917,2]
[311828444,1705440644926,-501.605338,0.00031917,2]
[311828445,1705440644936,-1462.71,0.00031917,2]
[311828446,1705440644945,-500.0,0.00031917,2]
[311828447,1705440644954,-8337.68,0.00031917,2]
[311828448,1705440644963,-500.0,0.00031917,2]
[311828449,1705440644973,-500.0,0.00031917,2]
[311828450,1705440644983,-500.0,0.00031917,4]
[311828451,1705440644993,-500.0,0.00031917,2]
[311828452,1705440645002,-150.0,0.00031917,2]
[311828453,1705440645011,-2523.65,0.00031917,2]
[311828454,1705440645021,-506.7967264,0.00031917,2]
[311828455,1705440645030,-2074.35,0.00031917,2]
[311828456,1705440645039,-500.0,0.00031917,2]
[311828457,1705440645049,-425.14723774,0.00031917,2]
[311828458,1705440645059,-500.0,0.00031917,2]
[311828459,1705440645068,-694.15,0.00031917,2]
[311828460,1705440645077,-500.0,0.00031917,2]
[311828461,1705440645087,-500.0,0.00031917,2]
[311828462,1705440645096,-500.0,0.00031917,2]
[311828463,1705440645104,-500.0,0.00031917,2]
[311828464,1705440645113,-500.0,0.00031917,2]
[311828465,1705440645123,-500.0,0.00031917,2]
[311828466,1705440645131,-500.0,0.00031917,2]
[311828467,1705440645140,-500.0,0.00031917,2]
[311828468,1705440645149,-500.0,0.00031917,2]
[311828469,1705440645158,-298.91019762,0.00031917,2]
[311828470,1705440645167,-500.0,0.00031917,2]
[311828471,1705440645176,-500.0,0.00031917,2]
[311828472,1705440645185,-500.0,0.00031917,2]
[311828473,1705440645194,-405.1553917,0.00031917,2]
[311828474,1705440645203,-25001.68,0.00031917,2]
[311828475,1705440645212,-500.0,0.00031917,2]
[311828476,1705440645223,-517.7478727,0.00031917,2]
[311828477,1705440645232,-5802.44,0.00031917,2]
[311828478,1705440645241,-641.98,0.00031917,2]
[311828479,1705440645250,-500.0,0.00031917,2]
[311828480,1705440645259,-500.0,0.00031917,2]
[311828481,1705440645267,-500.0,0.00031917,2]
[311828482,1705440645276,-500.0,0.00031917,2]
[311828483,1705440645285,-500.0,0.00031917,2]
[311828484,1705440645294,-1299.04,0.00031917,2]
[311828485,1705440645303,-500.0,0.00031917,2]
[311828486,1705440645312,-1861.01,0.00031917,2]
[311828487,1705440645321,-500.0,0.00031917,2]
[311828488,1705440645330,-500.0,0.00031917,2]
[311828489,1705440645339,-500.0,0.00031917,2]
[311828490,1705440645348,-500.0,0.00031917,2]
[311828491,1705440645357,-500.0,0.00031917,2]
[311828492,1705440645366,-500.0,0.00031917,2]
[311828493,1705440645375,-500.0,0.00031917,2]
[311828494,1705440645384,-14678.37,0.00031917,2]
[311828495,1705440645394,-500.0,0.00031917,2]
[311828496,1705440645402,-500.0,0.00031917,2]
[311828497,1705440645411,-1761.95,0.00031917,2]
[311828498,1705440645421,-500.0,0.00031917,2]
[311828499,1705440645430,-500.0,0.00031917,2]
[311828500,1705440645439,-576.92,0.00031917,2]
[311828501,1705440645448,-500.0,0.00031917,2]
[311828502,1705440645458,-500.0,0.00031917,2]
[311828503,1705440645469,-4973.99,0.00031917,2]
[311828504,1705440645478,-500.0,0.00031917,2]
[311828505,1705440645488,-500.0,0.00031917,2]
[311828506,1705440645499,-228.9504637,0.00031917,2]
[311828507,1705440645510,-512.9374497,0.00031917,2]
[311828508,1705440645522,-760.0,0.00031917,2]
[311828509,1705440645531,-500.0,0.00031917,2]
[311828510,1705440645540,-500.0,0.00031917,2]
[311828511,1705440645549,-1239.19,0.00031917,2]
[311828512,1705440645559,-609.14910284,0.00031917,2]
[311828513,1705440645568,-515.0666481,0.00031917,2]
[311828514,1705440645577,-972.57,0.00031917,2]
[311828515,1705440645587,-500.0,0.00031917,2]
[311828516,1705440645598,-658.28,0.00031917,2]
[311828517,1705440645607,-596.58,0.00031917,2]
[311828518,1705440645616,-500.0,0.00031917,2]
[311828519,1705440645625,-500.0,0.00031917,2]
[311828520,1705440645634,-500.0,0.00031917,2]
[311828521,1705440645643,-605.78919628,0.00031917,2]
[311828522,1705440645652,-2116.61,0.00031917,2]
[311828523,1705440645661,-500.0,0.00031917,2]
[311828524,1705440645670,-500.0,0.00031917,2]
[311828525,1705440645679,-500.0,0.00031917,2]
[311828526,1705440645688,-1074.51,0.00031917,2]
[311828527,1705440645697,-288.55963718,0.00031917,2]
[311828528,1705440645706,-500.0,0.00031917,2]
[311828529,1705440645716,-500.0,0.00031917,2]
[311828530,1705440645726,-1204.35,0.00031917,2]
[311828531,1705440645795,-1030.54,0.00031917,2]
[311828532,1705440645805,-500.0,0.00031917,2]
[311828533,1705440645815,-500.0,0.00031917,2]
[311828534,1705440645824,-6343.06,0.00031917,2]
[311828535,1705440645833,-239.06152815,0.00031917,2]
[311828536,1705440645843,-500.0,0.00031917,5]
[311828537,1705440645852,-500.0,0.00031917,2]
[311828538,1705440645862,-500.0,0.00031917,2]
[311828539,1705440645871,-703.73,0.00031999,2]
[311828540,1705440645880,-703.73,0.00031999,2]
[311828541,1705440645889,-703.73,0.00031999,2]
[311828542,1705440645898,-703.73,0.00031999,2]
[311828543,1705440645906,-105246.68997001,0.00032,15]
[311828544,1705440646005,-14323.48445094,0.00032,15]
[311828547,1705440646200,-155.0,0.00031328,2]
[311828548,1705440646209,-1149.33,0.0003177,3]
[311828549,1705440646219,-500.0,0.0003178,2]
[311828550,1705440646229,-500.0,0.0003178,2]
[311828551,1705440646239,-500.0,0.0003178,2]
[311828552,1705440646248,-500.0,0.00031917,2]
[311828554,1705440646257,-2313.48504447,0.00032,15]
[311828555,1705440646268,-612.79630013,0.00032,15]
[311828556,1705440646279,-5892.5881,0.00032,15]
[311828557,1705440646291,-9314.71403163,0.00032,15]
[311828570,1705440646943,-229.32960111,0.00031327,4]
[311828572,1705440646953,-500.0,0.0003178,2]
[311828573,1705440646963,-17524.36180942,0.00032,15]
[311828574,1705440646972,-150.0,0.00032,4]
[311828575,1705440646983,-2000.0,0.00032,2]
[311828576,1705440646992,-151.0,0.00032,2]
[311828577,1705440647002,-151.0,0.00032,2]
[311828578,1705440647011,-151.0,0.00032,2]
[311828579,1705440647020,-511.761038,0.00032,3]
[311828580,1705440647029,-263.055414,0.00032,2]
[311828581,1705440647038,-263.055414,0.00032,2]
[311828582,1705440647047,-175.050956,0.00032,2]
[311828583,1705440647056,-1226.41104998,0.0003201,2]
[311828633,1705441833463,-154.95351395,0.000286,4]
[311828635,1705441833472,-641.91004658,0.00028961,2]
[311828637,1705441833484,-394.41643947,0.00028961,2]
[311828738,1705441838581,-1449.32011121,0.00028961,2]
[311828740,1705441838591,-1045.05948708,0.00028961,2]
[311828742,1705441838600,-5998.21298933,0.00028962,2]
[311828744,1705441838609,-142.4841589,0.00029014,4]
[311828746,1705441838620,-1619.86288852,0.00029014,4]
[311828749,1705441838643,-5118.38001732,0.00029014,4]
[311828751,1705441838652,-721.6375062,0.00029014,4]
[311828752,1705441838661,-324.73687779,0.00029014,4]
[311828753,1705441838670,-150.0,0.000299,2]
[311828755,1705441838679,-151.28465711,0.00029905,2]
[311828757,1705441838688,-201.72349466,0.0003,3]
[311828758,1705441838697,-243.86975387,0.0003,4]
[311828759,1705441838706,-151.28465711,0.00030705,7]
[311828761,1705441838715,-151.28465711,0.00030966,7]
[311828762,1705441838725,-151.28465711,0.00031126,7]
[311828763,1705441838734,-156.876,0.00031622,2]
[311828764,1705441838743,-150.144,0.00031622,2]
[311828765,1705441838753,-151.28465711,0.00031669,7]
[311828766,1705441838762,-1283.65,0.0003177,3]
[311828767,1705441838771,-1634.51,0.0003177,3]
[311828768,1705441838780,-1362.1,0.0003177,3]
[311828769,1705441838791,-586.32062219,0.00031778,4]
[311828770,1705441838800,-500.0,0.0003178,2]
[311828771,1705441838811,-503.44599568,0.0003178,2]
[311828772,1705441838824,-500.0,0.0003178,2]
[311828773,1705441838833,-500.0,0.0003178,2]
[311828774,1705441838842,-500.0,0.0003178,2]
[311828775,1705441838852,-500.0,0.0003178,2]
[311828776,1705441838862,-500.0,0.0003178,2]
[311828777,1705441838871,-623.4,0.0003178,2]
[311828778,1705441838880,-647.55,0.0003178,2]
[311828779,1705441838889,-26.73231266,0.0003178,2]
[311828780,1705441838902,-473.26768734,0.0003178,2]
[311828781,1705441838913,-345.84708947,0.0003178,2]
[311828782,1705441838922,-500.0,0.0003178,2]
[311828783,1705441838932,-500.0,0.0003178,2]
[311828784,1705441838941,-500.0,0.0003178,2]
[311828785,1705441838950,-509.82347944,0.0003178,2]
[311828786,1705441838960,-500.0,0.0003178,2]
[311828787,1705441838970,-590.48447609,0.0003178,2]
[311828788,1705441838980,-524.52232068,0.0003178,2]
[311828789,1705441838991,-155.93861246,0.0003178,2]
[311828790,1705441839001,-502.05991619,0.0003178,2]
[311828791,1705441839010,-500.0,0.0003178,2]
[311828792,1705441839020,-501.5870556,0.0003178,2]
[311828793,1705441839031,-500.0,0.0003178,2]
[311828794,1705441839043,-500.0,0.0003178,2]
[311828795,1705441839052,-500.4137572,0.0003178,2]
[311828796,1705441839061,-500.0,0.0003178,2]
[311828797,1705441839070,-500.0,0.0003178,2]
[311828798,1705441839079,-500.0,0.0003178,2]
[311828799,1705441839088,-500.0,0.0003178,2]
[311828800,1705441839097,-500.0,0.0003178,2]
[311828801,1705441839106,-500.0,0.0003178,2]
[311828802,1705441839115,-500.0,0.0003178,2]
[311828803,1705441839123,-508.84364102,0.0003178,2]
[311828804,1705441839133,-500.0,0.0003178,2]
[311828805,1705441839141,-500.0,0.0003178,2]
[311828806,1705441839150,-550.67156865,0.0003178,2]
[311828807,1705441839159,-500.0,0.0003178,2]
[311828808,1705441839178,-500.0,0.0003178,2]
[311828809,1705441839189,-500.0,0.0003178,2]
[311828810,1705441839199,-500.0,0.0003178,2]
[311828811,1705441839209,-500.0,0.0003178,2]
[311828812,1705441839219,-500.0,0.0003178,2]
[311828813,1705441839229,-508.64246529,0.0003178,2]
[311828814,1705441839238,-500.0,0.0003178,2]
[311828815,1705441839248,-500.0,0.0003178,2]
[311828816,1705441839257,-500.0,0.0003178,2]
[311828817,1705441839266,-500.0,0.0003178,2]
[311828818,1705441839278,-500.0,0.0003178,2]
[311828819,1705441839289,-500.0,0.0003178,2]
[311828820,1705441839300,-500.0,0.0003178,2]
[311828821,1705441839310,-500.0,0.0003178,2]
[311828822,1705441839320,-500.0,0.0003178,2]
[311828823,1705441839330,-509.40069482,0.0003178,2]
[311828825,1705441839341,-500.0,0.0003178,2]
[311828827,1705441839351,-500.0,0.0003178,2]
[311828828,1705441839361,-500.0,0.0003178,2]
[311828829,1705441839371,-500.0,0.0003178,2]
[311828830,1705441839381,-500.0,0.0003178,2]
[311828831,1705441839390,-500.0,0.0003178,2]
[311828832,1705441839400,-1000.0,0.0003178,2]
[311828833,1705441839410,-500.0,0.0003178,2]
[311828834,1705441839419,-967.4,0.0003178,2]
[311828835,1705441839429,-500.0,0.0003178,2]
[311828836,1705441839438,-557.01681763,0.0003178,2]
[311828837,1705441839449,-500.0,0.0003178,2]
[311828838,1705441839459,-504.58340469,0.0003178,2]
[311828839,1705441839468,-500.59042,0.0003178,2]
[311828840,1705441839477,-1000.0,0.0003178,2]
[311828841,1705441839487,-150.0,0.0003178,2]
[311828842,1705441839497,-500.0,0.0003178,2]
[311828843,1705441839506,-500.0,0.0003178,2]
[311828844,1705441839516,-500.0,0.0003178,2]
[311828845,1705441839525,-500.0,0.0003178,2]
[311828846,1705441839534,-425.14723774,0.0003178,2]
[311828847,1705441839544,-500.0,0.0003178,2]
[311828848,1705441839554,-500.0,0.0003178,2]
[311828849,1705441839563,-500.0,0.0003178,2]
[311828850,1705441839573,-500.0,0.0003178,2]
[311828851,1705441839582,-500.0,0.0003178,2]
[311828852,1705441839591,-500.0,0.0003178,4]
[311828853,1705441839601,-500.0,0.0003178,2]
[311828854,1705441839611,-345.01609448,0.0003178,2]
[311828855,1705441839621,-500.0,0.0003178,2]